Cogmind - Beta 15 @@@ ROGUE MODE // 2025.05.09 @ 03:05:37 Player: Florist Result: Destroyed by S-27 Virus with Autogun Performance ------------- Evolutions (4) 2000 Regions Visited (8) 1600 Robots Destroyed (57) 285 Value Destroyed (1824) 1824 Prototype IDs (2) 40 Alien Tech Used (0) 0 Bonus (800) 800 TOTAL SCORE: 6549 Bonus ------- Registered with UFD 300 Met Optimus in HQ 500 Cogmind --------- Core Integrity 0/850 Matter 290/300 Energy 100/100 System Corruption 5% Temperature Cool (0) Movement Core (50) Location -6/Factory Parts ------- > --- POWER (1) -------- (None) > --- PROPULSION (4) --- (None) > --- UTILITY (7) ------ Signal Interpreter Hacking Suite > --- WEAPON (3) ------- (None) > --- INVENTORY (5) ---- Fission Core Scrap Suit Deep Structural Scanner Heavy Flail Peak State ------------ > --- POWER ------------ Fission Core > --- PROPULSION ------- Improved VTOL Module Improved VTOL Module Improved VTOL Module Nuclear Pulse Thruster > --- UTILITY ---------- Deep Structural Scanner Improved Sensor Array Signal Interpreter Reaction Control System Hacking Suite System Shield System Shield > --- WEAPON ----------- Heavy Flail > --- INVENTORY -------- Scrap Suit [Rating: 45] Favorites ----------- Power Ion Engine Engine Ion Engine Power Core Light Nuclear Core Propulsion Light Treads Treads Light Treads Leg Aluminum Leg Flight Unit Improved VTOL Module Utility Huge Storage Unit Device Improved Sensor Array Storage Huge Storage Unit Processor Signal Interpreter Hackware System Shield Protection Layered Light Armor Plating Weapon Light Assault Rifle Energy Gun Medium Laser Ballistic Gun Light Assault Rifle Ballistic Cannon Improved Light Cannon Launcher Proton Missile Launcher Impact Weapon Heavy Flail Build | -11 -10 -9 -9 -8 -8 -8 -8 -6 ------- Run | Yrd Mat Mat Min Mat Sto Rec Scr Fac Slots Evolved 8 | . . 2 . 2 . . . 4 Power . | . . . . . . . . . Propulsion 2 | . . 1 . . . . . 1 Utility 5 | . . . . 2 . . . 3 Weapon 1 | . . 1 . . . . . . Parts Attached 54 | 5 7 5 4 13 9 1 4 6 Power 5 | 1 1 . . 1 1 . . 1 Engine 3 | 1 1 . . . 1 . . . Core 2 | . . . . 1 . . . 1 Reactor . | . . . . . . . . . Propulsion 18 | 2 2 1 1 5 5 . . 2 Treads 10 | 2 2 1 1 3 1 . . . Leg 3 | . . . . 2 1 . . . Wheel . | . . . . . . . . . Hover . | . . . . . . . . . Flight 5 | . . . . . 3 . . 2 Utility 18 | . 3 . 2 3 3 1 3 3 Device 8 | . 1 . 1 2 1 . . 3 Storage 3 | . 1 . . . . 1 1 . Processor 2 | . . . . 1 . . 1 . Hackware 3 | . . . . . 2 . 1 . Protection 2 | . 1 . 1 . . . . . Artifact . | . . . . . . . . . Weapon 13 | 2 1 4 1 4 . . 1 . Energy Gun 3 | 1 . 1 . 1 . . . . Energy Cannon . | . . . . . . . . . Ballistic Gun 5 | 1 1 1 1 1 . . . . Ballistic Cannon 1 | . . 1 . . . . . . Launcher 1 | . . . . . . . 1 . Special Weapon . | . . . . . . . . . Impact Weapon 3 | . . 1 . 2 . . . . Slashing Weapon . | . . . . . . . . . Piercing Weapon . | . . . . . . . . . Special Melee Weapon . | . . . . . . . . . Unidentified Prototypes 2 | . . . . . 2 . . . Parts Lost 22 | . 1 3 4 1 4 . . 9 Power 3 | . 1 . 1 . 1 . . . Propulsion 12 | . . 1 3 . 3 . . 5 Utility 6 | . . 1 . 1 . . . 4 Weapon 1 | . . 1 . . . . . . Highest Loss Streak 9 | . 1 3 2 1 3 . . 9 To Critical Strikes . | . . . . . . . . . Average Backups 7 | . 3 5 8 11 11 5 7 1 Power . | . . . . . . . . . Propulsion 1 | . 2 1 . 3 2 . . . Utility 3 | . . 2 4 4 7 3 4 1 Weapon 2 | . . . 3 3 2 2 2 . Tool/Special . | . . . . . . . . . Unused Backups 10 | . . . 1 4 3 . 2 . Power . | . . . . . . . . . Propulsion . | . . . . . . . . . Utility 5 | . . . . 1 3 . 1 . Weapon 5 | . . . 1 3 . . 1 . Tool/Special . | . . . . . . . . . Average Slot Usage (%) 85 | . 76 94 86 94 89 80 72 73 Engine 5 | . 7 11 7 . 1 9 9 . Core 2 | . . . . 8 1 . . 5 Treads 20 | . 28 31 28 24 12 . . . Leg 1 | . . . . . 9 . . . Flight 5 | . . . . . 3 27 27 21 Device 4 | . . . . 6 11 5 . 17 Storage 8 | . 9 11 11 9 8 3 8 . Processor 4 | . . . . 9 9 9 9 6 Hackware 3 | . . . . . 1 18 18 17 Protection 4 | . 2 9 4 9 5 . . . Energy Gun 6 | . 14 19 8 3 . . . . Ballistic Gun 7 | . 14 7 13 9 . . . . Ballistic Cannon 3 | . . 1 11 6 . . . . Impact Weapon 6 | . . 3 . 7 24 8 . 4 Peak Build Rating 45 | 5 7 11 15 28 32 29 33 45 Average Rating 17 | 3 5 9 11 23 25 28 25 37 On Entrance 16 | . 5 7 10 14 27 29 25 29 Naked Turns . | . . . . . . . . . Heaviest Build 103 | 6 91 93 96 101 103 16 28 16 Greatest Support 63 | 40 40 60 63 63 60 15 15 21 Greatest Overweight (x) 9 | . 2 2 2 2 9 1 1 2 Average Overweight (x) . | . 1 1 1 1 . . . . Largest Inventory Capacity 25 | 5 25 25 25 25 25 8 15 5 Average Capacity 20 | 5 19 25 25 25 23 6 8 5 Most Carried 23 | 4 6 10 14 23 20 7 10 5 Average Carried 10 | . 3 5 11 16 15 5 7 2 Final Capacity 25 | 5 25 25 25 25 5 8 5 5 Final Carried 19 | . 5 8 13 19 5 7 5 5 Class Distribution -------------------- 41% | Mutant 15% | Tank 13% | Gunner 12% | Hacker-Sprinter 4% | Scavenger-Skirmisher 3% | Skirmisher 3% | Hacker-Scout 3% | Scavenger-Tank Dominant Class ---------------- Mutant | -10/Materials Tank | -9/Materials Gunner | -9/Mines Mutant | -8/Materials Mutant | -8/Storage Hacker-Sprinter | -8/Recycling Hacker-Sprinter | -8/Scraptown Hacker-Scout | -6/Factory Resources | -11 -10 -9 -9 -8 -8 -8 -8 -6 ----------- Run | Yrd Mat Mat Min Mat Sto Rec Scr Fac Matter Collected 1247 | 191 173 75 124 458 120 10 16 80 Remotely . | . . . . . . . . . Salvage Created 2049 | . 278 247 74 652 604 93 . 101 Parts 76 | . 17 12 6 32 8 . . 1 Haulers Intercepted 1 | . . . . . . . . 1 Recyclers Shooed 2 | . . . . 1 1 . . . Parts Field Recycled . | . . . . . . . . . Retrieved Matter . | . . . . . . . . . Parts Self-Destructed . | . . . . . . . . . Prevented . | . . . . . . . . . Kills | -11 -10 -9 -9 -8 -8 -8 -8 -6 ------- Run | Yrd Mat Mat Min Mat Sto Rec Scr Fac Combat Hostiles Destroyed 48 | . 10 7 6 12 13 . . . Melee 11 | . . . . 2 9 . . . Guns 25 | . 9 5 4 7 . . . . Cannons 5 | . . 1 2 2 . . . . Classes Destroyed 11 | . 4 2 . 4 . . . 1 Worker 1 | . . 1 . . . . . . Hauler 1 | . . . . . . . . 1 Recycler 1 | . . . . 1 . . . . Mechanic 1 | . . . . 1 . . . . Operator 3 | . 1 . . 1 1 . . . Watcher 2 | . 1 . . 1 . . . . Swarmer 14 | . 6 2 4 . 2 . . . Grunt 28 | . 4 3 2 9 10 . . . Brawler 1 | . . . . 1 . . . . Sentry 4 | . . 2 . 1 1 . . . Hunter 1 | . . . . 1 . . . . Best Kill Streak 5 | . 3 4 4 3 5 . . 1 Combat Bots Only 4 | . 3 3 4 2 4 . . . Max Kills in Single Turn 2 | . 1 1 1 2 1 . . 1 Gunslinging . | . . . . . . . . . Exploded . | . . . . . . . . . Melee 1 | . . . . 1 1 . . . Uniques/NPCs Destroyed . | . . . . . . . . . Combat | -11 -10 -9 -9 -8 -8 -8 -8 -6 -------- Run | Yrd Mat Mat Min Mat Sto Rec Scr Fac Hostile Shots Fired 408 | . 72 60 36 52 74 . 20 94 Missed 111 | . 13 12 10 17 19 . 8 32 Hits 297 | . 59 48 26 35 55 . 12 62 Melee 2 | . . . . 2 . . . . Projectile 295 | . 59 48 26 33 55 . 12 62 Critical Strikes 15 | . 1 5 2 2 2 . 1 2 Damage Taken 4441 | . 615 627 304 531 956 1 134 1273 Core 1337 | . 108 73 37 31 156 1 74 857 Absorbed by Shields . | . . . . . . . . . Core Remaining (%) 70 | 100 56 . 72 . . . 52 . Volleys Fired 120 | . 49 18 15 38 . . . . Largest 3 | . 2 3 3 3 . . . . Hottest 117 | . 70 110 103 117 . . . . Shots Fired 293 | . 96 38 45 114 . . . . Gun 236 | . 96 34 30 76 . . . . Cannon 57 | . . 4 15 38 . . . . Launcher . | . . . . . . . . . Special . | . . . . . . . . . Kinetic 195 | . 49 13 34 99 . . . . Thermal 98 | . 47 25 11 15 . . . . Explosive . | . . . . . . . . . Electromagnetic . | . . . . . . . . . Robot Hit Streak 27 | . 16 27 10 8 . . . . Robot Miss Streak 5 | . 4 1 3 5 . . . . Penetration Max 1 | . . . . 1 . . . . Secondary Targets 2 | . 2 . . . . . . . Max Gunslinging Chain 1 | . 1 . . . . . . . Shots Hit Robots 234 | . 60 36 28 73 34 1 . 2 Core Hits 81 | . 22 13 8 31 7 . . . Critical Kills . | . . . . . . . . . Critical Parts Destroyed 6 | . . . . . 5 . . 1 Critical Strikes 24 | . 7 3 3 5 5 . . 1 Burn 14 | . 7 1 2 4 . . . . Blast 4 | . . 2 1 1 . . . . Smash 6 | . . . . . 5 . . 1 Melee Attacks 110 | . . 11 . 11 74 1 . 13 Impact 110 | . . 11 . 11 74 1 . 13 Slashing . | . . . . . . . . . Piercing . | . . . . . . . . . Sneak Attacks 6 | . . . . 2 3 . . 1 Combat Hostiles 1 | . . . . 1 . . . . Follow-up Attacks 12 | . . . . 2 10 . . . Damage Inflicted 5211 | . 623 578 379 1588 1756 121 . 166 Guns 1736 | . 623 276 170 667 . . . . Cannons 663 | . . 91 209 363 . . . . Explosions . | . . . . . . . . . Melee 2809 | . . 211 . 558 1756 118 . 166 Ramming 3 | . . . . . . 3 . . Kinetic 1536 | . 276 139 281 840 . . . . Thermal 863 | . 347 228 98 190 . . . . Explosive . | . . . . . . . . . Electromagnetic . | . . . . . . . . . Impact 2809 | . . 211 . 558 1756 118 . 166 Slashing . | . . . . . . . . . Piercing . | . . . . . . . . . Highest Corruption 5 | . . . . . 2 4 . 5 Average Corruption 2 | . . . . . 2 2 . 5 Corruption Purged . | . . . . . . . . . Corruption Blocked . | . . . . . . . . . Effects 8 | . . . . . 4 2 . 2 Message Errors 1 | . . . . . 1 . . . Matter Fused 1 | . . . . . . 1 . . Heat Flow Errors 1 | . . . . . . . . 1 Energy Discharges 2 | . . . . . 2 . . . Data Loss (minor) 2 | . . . . . 1 . . 1 Data Loss (major) 1 | . . . . . . 1 . . Overload Shots . | . . . . . . . . . Overflow Damage 893 | . . 7 . 134 582 78 . 92 Projectiles . | . . . . . . . . . Explosions . | . . . . . . . . . Melee 893 | . . 7 . 134 582 78 . 92 Knockbacks 22 | . . 2 1 9 9 . . 1 Impact 10 | . . . . . 9 . . 1 Kinetic 11 | . . 2 1 8 . . . . Secondary 1 | . . . . 1 . . . . Self-Inflicted Damage 1 | . . . . . . 1 . . Shots . | . . . . . . . . . Rammed 1 | . . . . . . 1 . . Targets Rammed 1 | . . . . . . 1 . . Kicked . | . . . . . . . . . Crushed . | . . . . . . . . . Highest Temperature 437 | . 130 437 323 387 10 . 18 123 Average Temperature 91 | . 38 143 114 105 9 . 11 67 Received Heat Transfer 1363 | . 201 309 126 261 342 . 61 63 Effects 3 | . . . 1 2 . . . . Shutdowns 1 | . . . . 1 . . . . Energy Bleed 1 | . . . 1 . . . . . Short Circuit 1 | . . . . 1 . . . . Siege Activations . | . . . . . . . . . Martial Activations . | . . . . . . . . . Shielding Activations . | . . . . . . . . . Robots Disrupted . | . . . . . . . . . Combat Hostiles . | . . . . . . . . . Robots Corrupted 8 | . . 1 . 1 5 . . 1 Combat Hostiles 6 | . . 1 . 1 4 . . . Parts Fried 11 | . . . 1 2 7 1 . . Impact Corruptions 32 | . . 2 . 3 21 3 . 3 Robots Melted 1 | . 1 . . . . . . . Combat Hostiles 1 | . 1 . . . . . . . Parts Melted 2 | . 2 . . . . . . . Heat Transferred 3480 | . 1554 705 444 777 . . . . Parts Sabotaged . | . . . . . . . . . Parts Stolen . | . . . . . . . . . Parts Stripped . | . . . . . . . . . Power Chain Reactions . | . . . . . . . . . Alert | -11 -10 -9 -9 -8 -8 -8 -8 -6 ------- Run | Yrd Mat Mat Min Mat Sto Rec Scr Fac Maximum Alert Level . | . . . . . . . . . Low Security (%) 100 | 100 100 100 100 100 100 100 . 100 Level 1 . | . . . . . . . . . Level 2 . | . . . . . . . . . Level 3 . | . . . . . . . . . Level 4 . | . . . . . . . . . Level 5 . | . . . . . . . . . High Security . | . . . . . . . . . Max Security . | . . . . . . . . . Peak Influence 159 | . 63 73 77 159 128 50 . 30 Initial 45 | . . 4 22 8 27 45 . . Average 25 | . 16 20 11 45 44 18 . 2 Influence Increases 1643 | . 280 200 185 389 466 31 . 92 Destroy 0b10 Robot/C 960 | . 200 140 120 240 260 . . . Destroy 0b10 Robot/NC 55 | . 10 5 . 20 10 5 . 5 Destroy Leader 216 | . 42 40 20 52 60 . . 2 Trap Triggered on 0b10 10 | . . . . . 10 . . . Successful Hack 75 | . 13 . . 14 . 26 . 22 Disable Machine 60 | . . 15 . 15 30 . . . Destroy Structure 12 | . . . . 3 6 . . 3 Partial Spotted 60 | . . . . . 60 . . . Lose Combat Pursuer 195 | . 15 . 45 45 30 . . 60 Influence Decreases 1613 | . 269 154 220 345 416 147 . 62 Entered New Map 166 | . . 7 35 14 39 71 . . Time Decay 1375 | . 259 147 175 331 344 76 . 43 Lost Part 71 | . 10 . 10 . 32 . . 19 Lost Ally 1 | . . . . . 1 . . . Squads Dispatched 11 | . 2 1 . 2 5 . . 1 Investigation 4 | . 1 . . 1 1 . . 1 Extermination . | . . . . . . . . . Reinforcement 4 | . 1 1 . 1 1 . . . Assault . | . . . . . . . . . Garrison 3 | . . . . . 3 . . . Intercept . | . . . . . . . . . Searches Triggered . | . . . . . . . . . Construction Impeded . | . . . . . . . . . Haulers Reinforced . | . . . . . . . . . Active Scanning Responses . | . . . . . . . . . Cargo Convoy Interrupts . | . . . . . . . . . Stealth | -11 -10 -9 -9 -8 -8 -8 -8 -6 --------- Run | Yrd Mat Mat Min Mat Sto Rec Scr Fac Distress Signals 3 | . . . . 3 . . . . Communications Jammed . | . . . . . . . . . Distress Signals . | . . . . . . . . . Times Spotted 105 | . 23 9 9 19 16 . 15 14 Peak Tracking Total 11 | . 4 3 5 5 3 . 7 11 Tactical Retreats 10 | . 1 . 3 3 1 . . 2 Traps | -11 -10 -9 -9 -8 -8 -8 -8 -6 ------- Run | Yrd Mat Mat Min Mat Sto Rec Scr Fac Traps Triggered 5 | . 1 . 1 . 1 . . 2 Indirectly . | . . . . . . . . . Trap Hack Attempts . | . . . . . . . . . Triggered . | . . . . . . . . . Disarmed . | . . . . . . . . . Reprogrammed . | . . . . . . . . . Reused 1 | . . . . . 1 . . . Traps Extracted . | . . . . . . . . . Installed 5 | . . . . . 5 . . . Triggered 1 | . . . . . 1 . . . Most Traps Carried 5 | . . . 5 5 5 . . . Machines | -11 -10 -9 -9 -8 -8 -8 -8 -6 ---------- Run | Yrd Mat Mat Min Mat Sto Rec Scr Fac Machines Disabled 4 | . . 1 . 1 2 . . . Max in Single Turn 1 | . . 1 . 1 1 . . . Machines Repaired . | . . . . . . . . . Machines Dismantled . | . . . . . . . . . Machines Sabotaged . | . . . . . . . . . Overloaded Fab Kills . | . . . . . . . . . Hacking | -11 -10 -9 -9 -8 -8 -8 -8 -6 --------- Run | Yrd Mat Mat Min Mat Sto Rec Scr Fac Machines Accessed 30 | . 4 . 1 2 . 12 6 5 Terminals 16 | . 4 . . 2 . 6 . 4 Fabricators . | . . . . . . . . . Repair Stations . | . . . . . . . . . Recycling Units 5 | . . . . . . 4 . 1 Scanalyzers . | . . . . . . . . . Garrison Access . | . . . . . . . . . Total Hacks 115 | . 12 . 1 6 . 51 30 15 Successful 91 | . 7 . 1 3 . 40 30 10 Failed 24 | . 5 . . 3 . 11 . 5 Catastrophic 2 | . . . . . . 2 . . Database Lockouts . | . . . . . . . . . Manual 59 | . 11 . . 6 1 26 . 15 Terminals 55 | . 12 . . 6 . 23 . 14 Fabricators . | . . . . . . . . . Repair Stations . | . . . . . . . . . Recycling Units 5 | . . . . . . 4 . 1 Scanalyzers . | . . . . . . . . . Garrison Access . | . . . . . . . . . Terminal Hacks 70 | . 3 . 1 1 . 31 30 4 Record 56 | . 1 . . . . 26 29 . Robot Analysis 6 | . . . . . . 4 . 2 Open Door 2 | . . . 1 . . . 1 . Terminal Index 4 | . 1 . . 1 . 1 . 1 Locate Traps 1 | . 1 . . . . . . . Dispatch Records 1 | . . . . . . . . 1 Fabricator Hacks . | . . . . . . . . . Repair Station Hacks . | . . . . . . . . . Recycling Unit Hacks 4 | . . . . . . 4 . . Report Inventory 4 | . . . . . . 4 . . Scanalyzer . | . . . . . . . . . Garrison Access Hacks . | . . . . . . . . . Unauthorized Hacks 17 | . 4 . . 2 . 5 . 6 Terminals 16 | . 4 . . 2 . 5 . 5 Assimilate 2 | . . . . . . . . 2 Botnet 14 | . 4 . . 2 . 5 . 3 Fabricators . | . . . . . . . . . Repair Stations 1 | . . . . . . . . 1 Recycling Units . | . . . . . . . . . Fedlink 1 | . . . . . . . . 1 Scanalyzers . | . . . . . . . . . Garrison Access . | . . . . . . . . . Data Cores Recovered . | . . . . . . . . . Used . | . . . . . . . . . Hacking Detections 15 | . 3 . . 2 . 7 . 3 Full Trace Events 1 | . . . . 1 . . . . Feedback Events . | . . . . . . . . . Feedback Blocked . | . . . . . . . . . Robot Schematics Acquired . | . . . . . . . . . Robots Built . | . . . . . . . . . Authchips . | . . . . . . . . . Time . | . . . . . . . . . Total Robot Build Rating . | . . . . . . . . . Part Schematics Acquired . | . . . . . . . . . Parts Built . | . . . . . . . . . Authchips . | . . . . . . . . . Time . | . . . . . . . . . Total Part Build Rating . | . . . . . . . . . Parts Repaired . | . . . . . . . . . Time . | . . . . . . . . . Parts Recycled . | . . . . . . . . . Recycled Matter . | . . . . . . . . . Retrieved Matter . | . . . . . . . . . Retrieved Components . | . . . . . . . . . Parts Scanalyzed . | . . . . . . . . . Part Schematics Acquired . | . . . . . . . . . Parts Damaged . | . . . . . . . . . Bothacking | -11 -10 -9 -9 -8 -8 -8 -8 -6 ------------ Run | Yrd Mat Mat Min Mat Sto Rec Scr Fac Used RIF Installer . | . . . . . . . . . Robots Hacked . | . . . . . . . . . Non-combat . | . . . . . . . . . Combat . | . . . . . . . . . Robot Hacks Applied . | . . . . . . . . . Relay Couplers Released . | . . . . . . . . . Fabnet Peak Effective % . | . . . . . . . . . Robots Rewired . | . . . . . . . . . Allies Hacked . | . . . . . . . . . Hacks Repelled . | . . . . . . . . . Allies | -11 -10 -9 -9 -8 -8 -8 -8 -6 -------- Run | Yrd Mat Mat Min Mat Sto Rec Scr Fac Total Allies 1 | . . . . . . . . 1 Largest Group 1 | . . . . . . . . 1 Highest-Rated Group 26 | . . . . . . . . 26 Highest-Rated Ally 26 | . . . . . . . . 26 Total Orders 2 | . . . . . 1 . . 1 ROAM 1 | . . . . . . . . 1 EXPLORE 1 | . . . . . 1 . . . Ally Attacks . | . . . . . . . . . Total Damage . | . . . . . . . . . Kills . | . . . . . . . . . Allies Corrupted . | . . . . . . . . . Allies Melted 1 | . . . . . . . 1 . Intel | -11 -10 -9 -9 -8 -8 -8 -8 -6 ------- Run | Yrd Mat Mat Min Mat Sto Rec Scr Fac Active Infowar (turns) 2375 | . . . . 798 1157 151 . 269 Sensors 2362 | . . . . 798 1157 151 . 256 Structural 269 | . . . . . . . . 269 Robot Analysis Total 6 | . . . . . . 4 . 2 Derelict Logs Recovered 1 | . . . 1 . . . . . Drone Launches 16 | . . . . . 16 . . . Drone Recoveries 2 | . . . . . 2 . . . Exploration | -11 -10 -9 -9 -8 -8 -8 -8 -6 ------------- Run | Yrd Mat Mat Min Mat Sto Rec Scr Fac Turns Passed 6408 | 52 1044 651 1366 1034 1157 238 567 299 Spaces Moved 4457 | 35 339 203 432 314 466 596 1789 283 Core 37 | 12 . . . . . . . 25 Treads 1462 | 23 339 203 432 314 151 . . . Legs 87 | . . . . . 87 . . . Wheels . | . . . . . . . . . Hover . | . . . . . . . . . Flight 2871 | . . . . . 228 596 1789 258 Fastest Speed 27 | 50 160 240 240 240 29 29 29 27 Average Speed 111 | 122 252 247 267 259 159 36 30 38 Slowest Speed 662 | 160 320 320 320 320 662 99 99 175 Overloaded Moves . | . . . . . . . . . Propulsion Burnouts . | . . . . . . . . . Robots Hopped 18 | . . . . . . 13 1 4 Potential Cave-ins 7 | . . . . . . . . 7 Cave-ins Triggered 2 | . . . . . 1 . . 1 Exploration Rate (%) 48 | 5 55 18 78 21 51 99 96 10 Regions Visited 8 Branch Regions 4 Pre-discovered Areas 4 | . . . . . . . 4 . Known Exits Taken 4 | . . . . 1 1 1 1 . Unknown Exits Taken 4 | 1 1 1 1 . . . . . Scrap Searched 7 | . . . 4 . . . 3 . Spaces Dug 16 | . . . . . 6 . . 10 Terrain Destroyed 20 | . . . . 4 6 . . 10 Melee 16 | . . . . . 6 . . 10 Projectile 4 | . . . . 4 . . . . AOE . | . . . . . . . . . Terrain Rammed . | . . . . . . . . . Walls Destroyed . | . . . . . . . . . Machines Disabled . | . . . . . . . . . Actions | -11 -10 -9 -9 -8 -8 -8 -8 -6 --------- Run | Yrd Mat Mat Min Mat Sto Rec Scr Fac Total 5524 | 44 444 305 614 445 804 603 1814 451 Wait 637 | . 38 60 147 29 231 15 11 106 Move 4416 | 34 338 202 431 313 465 571 1786 276 Hop 14 | . . . . . . 11 1 2 Pick Up 76 | 5 10 7 11 24 10 1 5 3 Fast Attach 1 | . . . . . . 1 . . Attach 46 | 5 4 5 5 7 10 . 3 7 Detach 8 | . . 1 1 . . 1 . 5 Swap 22 | . 3 1 1 12 2 . 2 1 Drop 47 | . 2 . 3 13 21 1 6 1 Fire 120 | . 49 18 15 38 . . . . Melee 87 | . . 11 . 9 53 1 . 13 Ram 1 | . . . . . . 1 . . Kick . | . . . . . . . . . Crush . | . . . . . . . . . Escape Stasis 37 | . . . . . . . . 37 Rewire . | . . . . . . . . . Trap 5 | . . . . . 5 . . . Miscellaneous 7 | . . . . . 7 . . . Route ------- -11/Scrapyard -10/Materials (discovered 4 exits: [*Mat x2] / [*Min] / [*Sub]) -9/Materials -9/Mines -8/Materials -8/Storage -8/Recycling (discovered 2 exits: *Fac / *Scr) -8/Scraptown (discovered 2 exits: *Fac x2) -6/Factory (discovered 5 exits: Fac x3 / Low x2) History --------- Turn | Location | Event 9 | -11/Scrapyard | Discovered new exit (range 16) 53 | -11/Scrapyard | Entered Materials 304 | -10/Materials | Discovered new exit (range 5) 315 | -10/Materials | Build established: Mutant 582 | -10/Materials | Discovered new exit (range 7) 842 | -10/Materials | Discovered new exit (range 4) 986 | -10/Materials | Discovered new exit (range 9) 1097 | -10/Materials | Entered another Materials area 1097 | -9/Materials | Evolved 2 slots: Propulsion x1, Weapon x1 1172 | -9/Materials | Discovered new exit (range 13) 1404 | -9/Materials | Build established: Tank 1652 | -9/Materials | Lost 3 parts (1n1u1w) 1748 | -9/Materials | Entered Mines 1749 | -9/Mines | Met a Derelict bent on vengeance 2011 | -9/Mines | Build established: Gunner 2054 | -9/Mines | Found a hidden stash of uninstalled traps 2442 | -9/Mines | Met a Derelict who couldn't figure out how to use a Trap Extractor 2699 | -9/Mines | Learned Materials garrison access intel 2860 | -9/Mines | Build established: Tank 2933 | -9/Mines | Discovered new exit (range 5) 3114 | -9/Mines | Entered Materials 3114 | -8/Materials | Evolved 2 slots: Utility x2 3115 | -8/Materials | Loaded intel: 1 garrison access location 3649 | -8/Materials | Discovered new exit (range 4) 3666 | -8/Materials | Identified exit to Storage 4148 | -8/Materials | Entered Storage 4155 | -8/Storage | Build established: Mutant 4229 | -8/Storage | Garrison activated, responded to threat 4419 | -8/Storage | Lost 3 parts (1p2n) 4721 | -8/Storage | Crushed by falling debris 4915 | -8/Storage | Lost 12 allies 5304 | -8/Storage | Used back door to open Recycling access 5304 | -8/Storage | Discovered new exit (range 5) 5305 | -8/Storage | Identified exit to Recycling 5305 | -8/Storage | Entered Recycling 5306 | -8/Recycling | Met a Zionite searching for Scraptown 5390 | -8/Recycling | Scanned before Scraplab entrance 5440 | -8/Recycling | Discovered new exit (range 6) 5536 | -8/Recycling | Entered Scraplab 5539 | -8/Recycling | Discovered new exit (range 3) 5539 | -8/Recycling | Identified exit to Scraptown 5543 | -8/Recycling | Entered Scraptown 5543 | -8/Scraptown | System corruption cleaned by C-Scrubber 5584 | -8/Scraptown | Heard Great Nut preacher, LISTEN AND RECITE! 5591 | -8/Scraptown | Visited TADAMA 5599 | -8/Scraptown | Visited Junk Repository 5606 | -8/Scraptown | Visited Symbiants 5622 | -8/Scraptown | Discovered new exit (range 11) 5702 | -8/Scraptown | Visited Bundlers 5713 | -8/Scraptown | Visited Awakened 5726 | -8/Scraptown | Visited The Evicted 5730 | -8/Scraptown | Visited Comm Corps 5784 | -8/Scraptown | Visited UFD Registry 5784 | -8/Scraptown | Registered with UFD as "Electroparser" 5790 | -8/Scraptown | Visited Junk Cannon Lab 5799 | -8/Scraptown | Visited Abandonware Association 5804 | -8/Scraptown | Learned abandonware demo "SHUTEYE.EXE" 5812 | -8/Scraptown | Visited Chapter 10 5834 | -8/Scraptown | Build established: Hacker-Sprinter 5857 | -8/Scraptown | Visited Scrapoid Research Area 5865 | -8/Scraptown | Visited Scrapoid Pod Storage 5872 | -8/Scraptown | Visited Sword Containment 5885 | -8/Scraptown | Visited Cartography Club 5911 | -8/Scraptown | Learned location of Zion (-6) 5911 | -8/Scraptown | Learned 16 Materials zone layouts 5911 | -8/Scraptown | Learned 12 Factory zone layouts 5911 | -8/Scraptown | Learned 20 Factory zone layouts 5911 | -8/Scraptown | Learned 8 Upper Caves zone layouts 5911 | -8/Scraptown | Learned 12 Proximity Caves zone layouts 5911 | -8/Scraptown | Learned 4 Armory zone layouts 5911 | -8/Scraptown | Learned location of 1 exit from Research 5911 | -8/Scraptown | Learned location of 2 exits from Upper Caves 5911 | -8/Scraptown | Identified exit to Factory 5914 | -8/Scraptown | Found Deep Structural Scanner 5928 | -8/Scraptown | Visited Scrap Suit Storage 5937 | -8/Scraptown | Visited Science Testing Area 5942 | -8/Scraptown | Visited Research Penetration Think Tank 5997 | -8/Scraptown | Met Optimus 5997 | -8/Scraptown | Accepted into 0bPrime 6046 | -8/Scraptown | Civil war broke out across Scraptown 6092 | -8/Scraptown | Found Scrap Suit 6110 | -8/Scraptown | Entered Factory 6110 | -6/Factory | Evolved 4 slots: Propulsion x1, Utility x3 6111 | -6/Factory | Identified exit to Factory 6111 | -6/Factory | Identified exit to Lower Caves 6136 | -6/Factory | Lost 11 allies 6298 | -6/Factory | Loaded intel: 8 recycling unit locations 6337 | -6/Factory | Crushed by falling debris 6387 | -6/Factory | Core integrity fell below 50% 6404 | -6/Factory | Core integrity fell below 20% 6409 | -6/Factory | Destroyed by S-27 Virus with Autogun Last Messages --------------- 06377_ Penetrated by Slug. 06379_ Reaction Control System destroyed. 06379_ Critical hit (Blast). 06380_ Slug penetrates Wall. [Achievement: Cya!] 06382_ K-01 Serf cleans the Assembly Bed. 06383_ R-10 Processor collects Imp. Reaction Control System. 06385_ Penetrated by Slug. 06385_ Slug penetrates Assembly Bed. 06386_ Penetrated by Slug. 06386_ Slug penetrates Assembly Bed. 06386_ Assembly Bed disabled. 06391_ Imp. VTOL Module destroyed. 06391_ Acquired Xenon Bombardment Thruster. 06396_ Penetrated by Slug. 06396_ Xenon Bombardment Thruster destroyed. 06401_ System corrupted: Heat flow error (+160). 06401_ Penetrated by Slug. 06407_ Slug penetrates Wall. [Achievement: This Is Interesting...] Map ----- +----------------------------------------------------+ | ?????? #?????????# #???????????????????????? | | ?????? #?????????# #???????????????????????? | | ?????? #?????????# #???????????????????????? | | ?????????????????????????????????????????????????? | | ?????????????????????????????????????????????????? | | ?????????????????????????????????????????????????? | | ?????????????????????????????????????????????????? | | ?????????????????????????????????????????????????? | | ?????????????????????????????????????????????????? | | ?????????????????????????????????????????????????? | | ??????????????????????? ?????????????????????????? | | ????????????????????? ?????????????????????????? | | ?????????????????? ?????????????????????????? | | ?????????????????# ?????????????????????????? | | ?????????????????# ????????????????????????? | | ?????????????????# ????????????????????????? | | ?????????????????+ ????????????????????????? | | ?????????????????# ??????????????????##### # | | ?????????????????# ??????????????????# | | ?????????????????# ??????????????????# """ | | ?????????????????# ??????????????????# """ | | ?????????????????# ################### """ | | ?????????????????# h # | | ?????????????????# !h # """ | | ?????????????????# !!! # """ | | ?????????????????# @ !! # """ | | ?????????????????# !s + | | ?????????????????# s^ # """ " | | ?????????????????# s g # """ " | | ?????????????#########+#### """" " "" # """ " | | ?????????????# # """" """" # | | ?????????????# """ """ # """" """" ####### | | ?????????????# """ """ # """" """" # | | ?????????????# """ """ # """" """" # """" | | ?????????????# # k """" """" # """" | | ?????????????# """ """ # # """" | | ?????????????# """ """ # # """" | | ?????????????# """ """ # # | | ?????????????# #### ##### # """" | | ?????????????# ####%##### # """" | | ?????????????# #### #####H # """" | | ?????????????# #### ##### # """" | | ?????????????################# #### # | | ??????????????????????????#### ####T # | | ??????????????????############%##### + | | ??????????????????############!##### ####### | | ??????????????????############=# ### ## | | ??????????????????############!##### ## | | ??????????????????#### = !^ ## ## | | ??????????????????#### # # | +----------------------------------------------------+ Best States ------------- Heat Dissipation 37 Energy Generation 18 Energy Capacity 310 Matter Stores 300 Matter Capacity 300 Sight Range 16 Robot Scan Range 15 Terrain Scan Density 10 Armor Coverage 150 Evasion (%) 72 Recoil Reduction 3 Offensive Hacking 10 Defensive Hacking 20 Trap Extractor Capacity 6 Item Schematics ----------------- None Robot Schematics ------------------ None Fabricated ------------ Nothing Repaired ---------- Nothing Alien Tech Used ----------------- None Achievements -------------- Armchair Analyst Cya! This Is Interesting... Challenges ------------ None Game ------ Seed RemoteTacticalCompressor Manual? 0 Play Time 01:13:44 Cumulative 66.0 hours Start 2025.05.09 @ 01:47:32 End 2025.05.09 @ 03:05:37 Sessions 1 Manual Loads 0 Difficulty Rogue Special Mode None Game No. 83 Rogue 83 Adventurer 0 Explorer 0 Win Type - Total 0 Types 0/0/0/0/0/0/0/0/0/0 Lore% 28 Gallery% 41 Achievement% 39 Wizard Run 0 Options --------- Layout 1 ASCII 0 Keyboard 0 Movement Mouse Keybinds 0 Fullscreen 1 Font 32/SmallcapsGlow Map View 77x35 Zoom Use 0% Tactical HUD 1 Map Filters NONE Filters NONE Steam 1 RUN: 0d2591cf-8956-4aff-9534-7663c645ffd9